fUSD/lending_fUSD_20250211
["ID","MTS","AMOUNT","RATE_DAILY","PERIOD"]
[352790169,1739314240141,-362.22407568,0.00016571,2]
[352790170,1739314240173,-137.77592432,0.00016571,2]
[352790171,1739314240183,-607.11,0.00016571,2]
[352790172,1739314240193,-864.19,0.00016571,2]
[352790173,1739314240203,-500.0,0.00016571,2]
[352790174,1739314240212,-642.22,0.00016571,2]
[352790175,1739314240222,-500.0,0.00016571,2]
[352790176,1739314240232,-500.0,0.00016571,2]
[352790178,1739314240242,-99.14037644,0.00016571,2]
[352790179,1739314240254,-400.85962356,0.00016571,2]
[352790180,1739314240263,-500.0,0.00016571,2]
[352790181,1739314240272,-794.1,0.00016571,2]
[352790182,1739314240281,-500.0,0.00016571,2]
[352790183,1739314240291,-449.41849507,0.00016571,2]
[352790184,1739314240301,-500.0,0.00016571,2]
[352790185,1739314240310,-500.0,0.00016571,2]
[352790186,1739314240319,-500.0,0.00016571,2]
[352790187,1739314240329,-500.0,0.00016571,2]
[352790188,1739314240338,-500.0,0.00016571,2]
[352790189,1739314240348,-500.0,0.00016571,2]
[352790190,1739314240357,-500.0,0.00016571,2]
[352790191,1739314240367,-500.0,0.00016571,2]
[352790192,1739314240376,-500.0,0.00016571,2]
[352790193,1739314240387,-500.0,0.00016571,2]
[352790194,1739314240396,-500.0,0.00016571,2]
[352790195,1739314240405,-500.0,0.00016571,2]
[352790196,1739314240415,-233.97684879,0.00016571,2]
[352790197,1739314240424,-41.30610558,0.00016571,2]
[352790198,1739314240448,-371.94492255,0.00016571,2]
[352790216,1739314243047,-500.0,0.00016569,2]
[352790217,1739314243056,-298.19146953,0.00016569,2]
[352790218,1739314243068,-201.80853047,0.00016569,2]
[352790219,1739314243078,-715.87,0.0001657,2]
[352790220,1739314243087,-86.74897187,0.00016571,2]
[352790221,1739314243096,-560.92,0.00016571,2]
[352790222,1739314243105,-500.0,0.00016571,2]
[352790223,1739314243115,-500.0,0.00016571,2]
[352790224,1739314243124,-433.31611181,0.00016571,2]
[352790225,1739314243185,-66.68388819,0.00016571,2]
[352790226,1739314243195,-500.0,0.00016571,2]
[352790227,1739314243205,-164.47311186,0.00016571,2]
[352790228,1739314243230,-335.52688814,0.00016571,2]
[352790229,1739314243240,-500.0,0.00016571,2]
[352790230,1739314243249,-500.0,0.00016571,2]
[352790231,1739314243258,-500.0,0.00016571,2]
[352790232,1739314243270,-500.0,0.00016571,2]
[352790233,1739314243279,-500.0,0.00016571,2]
[352790234,1739314243289,-500.0,0.00016571,2]
[352790235,1739314243298,-495.22,0.00016571,2]
[352790236,1739314243307,-500.0,0.00016571,2]
[352790237,1739314243316,-500.0,0.00016571,2]
[352790238,1739314243326,-500.0,0.00016571,2]
[352790239,1739314243336,-553.12,0.00016571,2]
[352790240,1739314243346,-1950.21,0.00016571,2]
[352790241,1739314243355,-500.0,0.00016571,2]
[352790242,1739314243365,-500.0,0.00016571,2]
[352790243,1739314243375,-500.0,0.00016571,2]
[352790244,1739314243384,-500.0,0.00016571,2]
[352790245,1739314243394,-500.0,0.00016571,2]
[352790246,1739314243403,-500.0,0.00016571,2]
[352790247,1739314243413,-500.0,0.00016571,2]
[352790249,1739314243422,-500.0,0.00016571,2]
[352790250,1739314243431,-500.0,0.00016571,2]
[352790251,1739314243441,-500.0,0.00016571,2]
[352790252,1739314243451,-670.01,0.00016571,2]
[352790253,1739314243460,-500.0,0.00016571,2]
[352790254,1739314243469,-500.0,0.00016571,2]
[352790255,1739314243479,-500.0,0.00016571,2]
[352790256,1739314243488,-500.0,0.00016571,2]
[352790257,1739314243497,-500.0,0.00016571,2]
[352790258,1739314243507,-500.0,0.00016571,2]
[352790259,1739314243516,-500.0,0.00016571,2]
[352790260,1739314243526,-500.0,0.00016571,2]
[352790261,1739314243535,-500.0,0.00016571,2]
[352790262,1739314243544,-500.0,0.00016571,2]
[352790263,1739314243553,-500.0,0.00016571,2]
[352790264,1739314243562,-500.0,0.00016571,2]
[352790266,1739314243571,-500.0,0.00016571,2]
[352790268,1739314243580,-500.0,0.00016571,2]
[352790270,1739314243588,-500.0,0.00016571,2]
[352790271,1739314243597,-500.0,0.00016571,2]
[352790273,1739314243607,-500.0,0.00016571,2]
[352790274,1739314243616,-500.0,0.00016571,2]
[352790275,1739314243625,-500.0,0.00016571,2]
[352790276,1739314243634,-500.0,0.00016571,2]
[352790277,1739314243643,-500.0,0.00016571,2]
[352790278,1739314243652,-500.0,0.00016571,2]
[352790279,1739314243661,-500.0,0.00016571,2]
[352790280,1739314243671,-1657.14,0.00016571,2]
[352790281,1739314243680,-500.0,0.00016571,2]
[352790282,1739314243689,-500.0,0.00016571,2]
[352790283,1739314243699,-500.0,0.00016571,2]
[352790284,1739314243708,-500.0,0.00016571,2]
[352790285,1739314243717,-500.0,0.00016571,2]
[352790286,1739314243726,-500.0,0.00016571,2]
[352790287,1739314243735,-500.0,0.00016571,2]
[352790288,1739314243745,-500.0,0.00016571,2]
[352790289,1739314243754,-1025.06,0.00016571,2]
[352790290,1739314243763,-500.0,0.00016571,2]
[352790291,1739314243772,-500.0,0.00016571,2]
[352790292,1739314243782,-500.0,0.00016571,2]
[352790293,1739314243790,-500.0,0.00016571,2]
[352790294,1739314243799,-500.0,0.00016571,2]
[352790295,1739314243808,-951.99,0.00016571,2]
[352790296,1739314243818,-500.0,0.00016571,2]
[352790297,1739314243827,-500.0,0.00016571,2]
[352790298,1739314243835,-500.0,0.00016571,2]
[352790299,1739314243845,-500.0,0.00016571,2]
[352790300,1739314243854,-500.0,0.00016571,2]
[352790301,1739314243863,-500.0,0.00016571,2]
[352790302,1739314243872,-500.0,0.00016571,2]
[352790303,1739314243881,-500.0,0.00016571,2]
[352790304,1739314243891,-500.0,0.00016571,2]
[352790305,1739314243900,-500.0,0.00016571,2]
[352790306,1739314243910,-500.0,0.00016571,2]
[352790307,1739314243921,-500.0,0.00016571,2]
[352790308,1739314243935,-500.0,0.00016571,2]
[352790309,1739314243945,-500.0,0.00016571,2]
[352790310,1739314243954,-500.0,0.00016571,2]
[352790311,1739314243964,-500.0,0.00016571,2]
[352790312,1739314243973,-500.0,0.00016571,2]
[352790313,1739314243984,-500.0,0.00016571,2]
[352790314,1739314243994,-500.0,0.00016571,2]
[352790315,1739314244005,-158.165113,0.00016572,2]
[352790316,1739314244015,-500.0,0.00016572,2]
[352790317,1739314244024,-500.0,0.00016572,2]
[352790318,1739314244034,-396.78844246,0.00016572,2]
[352790319,1739314244044,-642.38,0.00016572,2]
[352790320,1739314244054,-500.0,0.00016572,2]
[352790321,1739314244063,-500.0,0.00016572,2]
[352790322,1739314244073,-113.1415564,0.00016572,2]
[352790323,1739314244091,-386.8584436,0.00016572,2]
[352790324,1739314244101,-500.0,0.00016572,2]
[352790325,1739314244111,-510.25,0.00016572,2]
[352790326,1739314244120,-500.0,0.00016572,2]
[352790327,1739314244129,-500.0,0.00016572,2]
[352790328,1739314244138,-165.59155663,0.00016572,2]
[352790351,1739314245833,-500.0,0.00016571,2]
[352790352,1739314245851,-213.52618125,0.00016572,2]
[352790353,1739314245872,-120.88226212,0.00016572,2]
[352790354,1739314245882,-500.0,0.00016572,2]
[352790355,1739314245892,-341.72911788,0.00016572,2]
[352790356,1739314245904,-281.38088212,0.00016572,2]
[352790357,1739314245914,-2164.52,0.00016572,2]
[352790358,1739314245925,-500.0,0.00016572,2]
[352790359,1739314245938,-500.0,0.00016572,2]
[352790360,1739314245948,-500.0,0.00016572,2]
[352790361,1739314245957,-500.0,0.00016572,2]
[352790362,1739314245967,-500.0,0.00016572,2]
[352790363,1739314245977,-500.0,0.00016572,2]
[352790364,1739314245987,-500.0,0.00016572,2]
[352790365,1739314245996,-509.91,0.00016572,2]
[352790366,1739314246005,-1000.0,0.00016572,2]
[352790367,1739314246016,-500.0,0.00016572,2]
[352790368,1739314246026,-500.0,0.00016572,2]
[352790369,1739314246036,-500.0,0.00016572,2]
[352790370,1739314246047,-623.53,0.00016572,2]
[352790371,1739314246056,-500.0,0.00016572,2]
[352790372,1739314246066,-500.0,0.00016573,2]
[352790373,1739314246075,-500.0,0.00016573,2]
[352790374,1739314246085,-500.0,0.00016573,2]
[352790375,1739314246094,-500.0,0.00016573,2]
[352790376,1739314246103,-500.0,0.00016573,2]
[352790377,1739314246113,-500.0,0.00016573,2]
[352790378,1739314246124,-500.0,0.00016573,2]
[352790379,1739314246134,-428.85766724,0.00016573,2]
[352790380,1739314246144,-500.0,0.00016573,2]
[352790381,1739314246154,-500.0,0.00016573,2]
[352790382,1739314246164,-500.0,0.00016573,2]
[352790383,1739314246173,-500.54774481,0.00016573,2]
[352790384,1739314246183,-500.0,0.00016573,2]
[352790385,1739314246193,-500.0,0.00016573,2]
[352790386,1739314246203,-500.29617849,0.00016573,2]
[352790387,1739314246213,-500.0,0.00016573,2]
[352790388,1739314246223,-500.0,0.00016573,2]
[352790389,1739314246233,-500.0,0.00016573,2]
[352790390,1739314246242,-500.0,0.00016573,2]
[352790391,1739314246252,-500.0,0.00016573,2]
[352790392,1739314246261,-500.0,0.00016573,2]
[352790393,1739314246271,-500.0,0.00016573,2]
[352790394,1739314246280,-500.0,0.00016573,2]
[352790395,1739314246290,-500.0,0.00016573,2]
[352790396,1739314246299,-500.0,0.00016573,2]
[352790397,1739314246309,-500.0,0.00016573,2]
[352790398,1739314246318,-500.0,0.00016573,2]
[352790399,1739314246328,-500.0,0.00016573,2]
[352790400,1739314246336,-301.85151837,0.00016573,2]
[352790401,1739314246346,-500.0,0.00016573,2]
[352790402,1739314246355,-500.0,0.00016573,2]
[352790403,1739314246364,-500.0,0.00016573,2]
[352790404,1739314246374,-500.0,0.00016573,2]
[352790405,1739314246385,-500.0,0.00016573,2]
[352790406,1739314246395,-500.0,0.00016573,2]
[352790407,1739314246405,-500.0,0.00016573,2]
[352790408,1739314246415,-364.14963329,0.00016573,2]
[352790409,1739314246425,-502.48821203,0.00016573,2]
[352790410,1739314246434,-545.01031305,0.00016573,2]
[352790411,1739314246445,-500.0,0.00016573,2]
[352790412,1739314246454,-500.0,0.00016573,2]
[352790413,1739314246464,-500.81274031,0.00016573,2]
[352790414,1739314246473,-500.0,0.00016573,2]
[352790415,1739314246483,-501.58656571,0.00016573,2]
[352790416,1739314246492,-500.0,0.00016573,2]
[352790417,1739314246502,-500.0,0.00016573,2]
[352790418,1739314246511,-500.0,0.00016573,2]
[352790419,1739314246521,-500.0,0.00016573,2]
[352790420,1739314246530,-500.0,0.00016573,2]
[352790421,1739314246539,-500.0,0.00016573,2]
[352790422,1739314246550,-500.0,0.00016573,7]
[352790423,1739314246559,-500.69323942,0.00016573,2]
[352790424,1739314246569,-909.75985,0.00016573,2]
[352790425,1739314246578,-534.05,0.00016575,2]
[352790426,1739314246587,-500.0,0.00016575,2]
[352790427,1739314246597,-154.57,0.00016575,2]
[352790428,1739314246607,-397.57,0.00016575,2]
[352790429,1739314246616,-500.0,0.00016575,2]
[352790430,1739314246626,-500.0,0.00016575,2]
[352790431,1739314246635,-254.32,0.00016575,2]
[352790432,1739314246645,-448.51198955,0.00016575,2]
[352790433,1739314246655,-286.11,0.00016575,2]
[352790434,1739314246665,-403.28,0.00016575,2]
[352790435,1739314246674,-500.0,0.00016575,2]
[352790436,1739314246684,-500.0,0.00016575,2]
[352790437,1739314246693,-500.0,0.00016575,2]
[352790438,1739314246703,-500.0,0.00016575,2]
[352790439,1739314246713,-500.0,0.00016575,2]
[352790440,1739314246723,-500.0,0.00016575,2]
[352790441,1739314246733,-500.0,0.00016575,2]
[352790442,1739314246743,-500.0,0.00016575,2]
[352790443,1739314246753,-500.0,0.00016575,2]
[352790444,1739314246763,-500.0,0.00016575,2]
[352790445,1739314246775,-500.0,0.00016575,2]
[352790446,1739314246785,-500.0,0.00016575,2]
[352790447,1739314246795,-500.0,0.00016575,2]
[352790448,1739314246805,-137.9519891,0.00016575,2]
[352790451,1739314253306,1323.8499,8.699e-05,2]
[352790452,1739314281568,259.945,8.973e-05,2]
[352790990,1739315431669,-15874.33,0.0001,2]
[352790991,1739315431679,-371.32,0.00010137,2]
[352790992,1739315431689,-160.79,0.00010137,2]
[352790993,1739315431698,-502.3,0.000107,2]
[352790994,1739315431708,-2910.19608478,0.00011115,2]
[352790995,1739315431717,-277.03491105,0.00011115,2]
[352790996,1739315431735,-228.25508895,0.00011115,2]
[352790997,1739315431745,-502.28,0.00011837,2]
[352790998,1739315431754,-550.0,0.00013,2]
[352790999,1739315431763,-250.0,0.00013213,2]
[352791000,1739315431773,-203.43,0.00013699,2]
[352791001,1739315431782,-800.0,0.00014068,2]
[352791002,1739315431791,-200.0,0.0001491,2]
[352791003,1739315431801,-23900.0,0.00014928,2]
[352791004,1739315431810,-686.68,0.0001497,2]
[352791005,1739315431819,-600.0,0.00015,2]
[352791006,1739315431828,-883.72,0.00015085,2]
[352791007,1739315431838,-883.72,0.00015089,2]
[352791008,1739315431847,-203.23702856,0.00015093,2]
[352791009,1739315431863,-433.68891129,0.00015093,2]
[352791010,1739315431874,-246.79406015,0.00015093,2]
[352791011,1739315431883,-883.72,0.00015097,2]
[352791012,1739315431893,-883.72,0.00015101,2]
[352791013,1739315431903,-19.16546685,0.00015104,2]
[352791014,1739315431914,-864.55453315,0.00015104,2]
[352791015,1739315431923,-883.72,0.00015108,2]
[352791016,1739315431935,-445.62546685,0.00015112,2]
[352791017,1739315431952,-438.09453315,0.00015112,2]
[352791018,1739315431961,-883.72,0.00015116,2]
[352791019,1739315431971,-320.53701694,0.0001512,2]
[352791020,1739315432010,-563.18298306,0.0001512,2]
[352791021,1739315432020,-385.75701694,0.00015124,2]
[352791044,1739315437631,-497.96298306,0.00015124,2]
[352791045,1739315437641,-233.36126465,0.00015128,2]
[352791046,1739315437653,-650.35873535,0.00015128,2]
[352791047,1739315437663,-883.72,0.00015132,2]
[352791048,1739315437673,-883.72,0.00015136,2]
[352791049,1739315437683,-883.72,0.0001514,2]
[352791050,1739315437693,-883.72,0.00015144,2]
[352791051,1739315437703,-883.72,0.00015148,2]
[352791052,1739315437713,-883.72,0.00015152,2]
[352791053,1739315437723,-883.72,0.00015156,2]
[352791054,1739315437733,-883.72,0.0001516,2]
[352791055,1739315437743,-500.0,0.00015164,2]
[352791056,1739315437752,-500.0,0.00015164,2]
[352791057,1739315437762,-250.0,0.00015216,2]
[352791058,1739315437772,-2000.0,0.00015221,2]
[352791059,1739315437782,-1000.0,0.00015273,2]
[352791060,1739315437791,-804.85,0.0001533,2]
[352791061,1739315437801,-800.0,0.00015438,2]
[352791062,1739315437810,-562.01,0.00015543,2]
[352791063,1739315437820,-683.73,0.00015596,2]
[352791064,1739315437829,-163.87,0.0001569,2]
[352791066,1739315437838,-316.83,0.00016,2]
[352791068,1739315437847,-1000.0,0.00016124,2]
[352791070,1739315437857,-431.83725236,0.00016191,2]
[352791072,1739315437866,-164.57225042,0.000162,2]
[352791074,1739315437876,-150.0,0.000162,2]
[352791076,1739315437885,-150.0,0.000162,2]
[352791078,1739315437895,-150.21347788,0.000162,2]
[352791080,1739315437904,-150.0,0.000162,2]
[352791082,1739315437915,-164.57225042,0.00016218,2]
[352791084,1739315437925,-150.0,0.00016235,2]
[352791086,1739315437935,-164.57225042,0.00016236,2]
[352791088,1739315437945,-164.57225042,0.00016255,2]
[352791090,1739315437955,-150.0,0.00016256,2]
[352791092,1739315437967,-150.0,0.00016271,2]
[352791094,1739315437976,-164.57225042,0.00016273,2]
[352791096,1739315437987,-164.57225042,0.00016291,2]
[352791098,1739315437996,-150.0,0.00016306,2]
[352791100,1739315438005,-164.57225042,0.00016309,2]
[352791102,1739315438015,-150.0,0.00016312,2]
[352791104,1739315438024,-164.57225042,0.00016327,2]
[352791106,1739315438033,-150.0,0.00016338,2]
[352791108,1739315438041,-150.0,0.00016341,2]
[352791110,1739315438051,-164.57225042,0.00016345,2]
[352791111,1739315438060,-164.57225042,0.00016364,2]
[352791113,1739315438070,-150.0,0.00016369,2]
[352791115,1739315438079,-150.0,0.00016376,2]
[352791118,1739315438088,-164.57225042,0.00016382,2]
[352791119,1739315438097,-164.57225042,0.000164,2]
[352791121,1739315438107,-5768.4752965,0.0001641,2]
[352791144,1739315438321,-13675.79672755,0.0001641,2]
[352791146,1739315438330,-150.0,0.00016412,2]
[352791148,1739315438340,-164.57225042,0.00016418,2]
[352791150,1739315438351,-150.0,0.00016425,2]
[352791152,1739315438359,-164.57225042,0.00016436,2]
[352791154,1739315438368,-150.0,0.00016438,2]
[352791156,1739315438377,-438.84,0.00016438,2]
[352791157,1739315438388,-150.0,0.00016438,2]
[352791159,1739315438397,-438.84,0.00016438,2]
[352791161,1739315438407,-150.0,0.00016438,2]
[352791163,1739315438416,-150.0,0.00016447,2]
[352791165,1739315438425,-164.57225042,0.00016455,2]
[352791167,1739315438435,-159.89534742,0.00016469,2]
[352791169,1739315438444,-216.033073,0.0001647,2]
[352791171,1739315438453,-164.57225042,0.00016473,2]
[352791173,1739315438462,-150.0,0.00016477,2]
[352791175,1739315438471,-150.0,0.00016481,2]
[352791177,1739315438481,-150.0,0.00016482,2]
[352791179,1739315438490,-164.57225042,0.00016491,2]
[352791181,1739315438500,-5943.0,0.000165,3]
[352791183,1739315438510,-164.57225042,0.00016509,2]
[352791185,1739315438520,-150.0,0.00016518,2]
[352791187,1739315438529,-164.57225042,0.00016527,2]
[352791189,1739315438539,-500.0,0.00016534,2]
[352791191,1739315438548,-150.0,0.00016537,2]
[352791193,1739315438558,-164.57225042,0.00016545,2]
[352791195,1739315438567,-150.0,0.00016553,2]
[352791197,1739315438577,-164.57225042,0.00016564,2]
[352791199,1739315438587,-500.0,0.00016569,2]
[352791201,1739315438597,-500.0,0.00016569,2]
[352791203,1739315438607,-500.0,0.00016569,2]
[352791205,1739315438616,-500.0,0.00016569,2]
[352791207,1739315438625,-500.0,0.00016569,2]
[352791209,1739315438634,-500.0,0.00016569,2]
[352791211,1739315438644,-500.0,0.00016569,2]
[352791213,1739315438653,-500.0,0.00016569,2]
[352791214,1739315438662,-500.0,0.00016569,2]
[352791216,1739315438671,-500.0,0.00016569,2]
[352791218,1739315438680,-500.0,0.00016569,2]
[352791220,1739315438690,-500.0,0.00016569,2]
[352791222,1739315438700,-500.0,0.00016569,2]
[352791225,1739315438709,-500.0,0.00016569,2]
[352791226,1739315438718,-500.0,0.00016569,2]
[352791228,1739315438728,-500.0,0.00016569,2]
[352791230,1739315438737,-500.0,0.00016569,2]
[352791233,1739315438747,-500.0,0.00016569,2]
[352791234,1739315438756,-500.0,0.00016569,2]
[352791236,1739315438766,-500.0,0.00016569,2]
[352791239,1739315438775,-500.0,0.00016569,2]
[352791241,1739315438786,-500.0,0.00016569,2]
[352791243,1739315438795,-500.0,0.00016569,2]
[352791244,1739315438804,-500.0,0.00016569,2]
[352791246,1739315438813,-500.0,0.00016569,2]
[352791248,1739315438822,-500.0,0.00016569,2]
[352791250,1739315438832,-500.0,0.00016569,2]
[352791252,1739315438841,-500.0,0.00016569,2]
[352791254,1739315438851,-500.0,0.00016569,2]
[352791256,1739315438864,-644.49,0.00016569,2]
[352791258,1739315438875,-1609.06,0.00016569,2]
[352791260,1739315438884,-500.0,0.00016569,2]
[352791262,1739315438894,-500.0,0.0001657,2]
[352791263,1739315438903,-500.0,0.0001657,2]
[352791264,1739315438911,-500.0,0.0001657,2]
[352791265,1739315438920,-500.0,0.0001657,2]
[352791266,1739315438930,-500.0,0.0001657,2]
[352791267,1739315438940,-500.0,0.0001657,2]
[352791268,1739315438949,-500.0,0.0001657,2]
[352791269,1739315438958,-500.0,0.0001657,2]
[352791270,1739315438967,-500.0,0.0001657,2]
[352791271,1739315438976,-500.0,0.0001657,2]
[352791272,1739315438986,-500.0,0.0001657,2]
[352791273,1739315438994,-500.0,0.0001657,2]
[352791291,1739315439186,-500.0,0.0001657,2]
[352791293,1739315439197,-449.76856005,0.0001657,2]
[352791295,1739315439210,-50.23143995,0.0001657,2]
[352791297,1739315439220,-500.0,0.0001657,2]
[352791299,1739315439229,-500.0,0.0001657,2]
[352791301,1739315439239,-500.0,0.0001657,2]
[352791303,1739315439249,-500.0,0.0001657,2]
[352791305,1739315439258,-500.0,0.0001657,2]
[352791307,1739315439268,-500.0,0.0001657,2]
[352791309,1739315439277,-500.0,0.0001657,2]
[352791311,1739315439287,-500.0,0.0001657,2]
[352791313,1739315439297,-500.0,0.0001657,2]
[352791316,1739315439308,-500.0,0.0001657,2]
[352791318,1739315439319,-500.0,0.0001657,2]
[352791319,1739315439330,-577.37297556,0.0001657,2]
[352791321,1739315439340,-500.0,0.0001657,2]
[352791322,1739315439351,-500.0,0.0001657,2]
[352791324,1739315439361,-500.0,0.0001657,2]
[352791326,1739315439370,-527.8873155,0.0001657,2]
[352791328,1739315439381,-500.0,0.0001657,2]
[352791330,1739315439391,-500.0,0.0001657,2]
[352791332,1739315439401,-690.39,0.0001657,2]
[352791334,1739315439411,-500.0,0.0001657,2]
[352791336,1739315439421,-500.0,0.0001657,2]
[352791338,1739315439431,-500.0,0.0001657,2]
[352791340,1739315439441,-500.0,0.0001657,2]
[352791342,1739315439451,-500.0,0.0001657,2]
[352791344,1739315439461,-500.0,0.0001657,2]
[352791346,1739315439471,-36.98826908,0.0001657,2]
[352791349,1739315439489,-463.01173092,0.0001657,2]
[352791351,1739315439498,-500.0,0.0001657,2]
[352791352,1739315439509,-363.4799365,0.0001657,2]
[352791384,1739315439813,-136.5200635,0.0001657,2]
[352791386,1739315439823,-500.0,0.0001657,2]
[352791388,1739315439833,-522.55124996,0.0001657,2]
[352791390,1739315439843,-500.0,0.0001657,2]
[352791392,1739315439852,-446.74546179,0.0001657,2]
[352791397,1739315439887,-53.25453821,0.0001657,2]
[352791399,1739315439897,-177.25727958,0.0001657,2]
[352791400,1739315439906,-500.0,0.0001657,2]
[352791402,1739315439916,-313.43523478,0.0001657,2]
[352791405,1739315439927,-186.56476522,0.0001657,2]
[352791407,1739315439937,-110.12937337,0.0001657,2]
[352791409,1739315439948,-389.87062663,0.0001657,2]
[352791411,1739315439957,-500.0,0.0001657,2]
[352791413,1739315439966,-500.0,0.0001657,2]
[352791414,1739315439975,-500.0,0.0001657,2]
[352791416,1739315439984,-500.0,0.0001657,2]
[352791418,1739315439993,-500.0,0.0001657,2]
[352791420,1739315440002,-500.0,0.0001657,2]
[352791422,1739315440012,-88.0430887,0.0001657,2]
[352791447,1739315440251,-411.9569113,0.0001657,2]
[352791449,1739315440260,-235.18958871,0.0001657,2]
[352791451,1739315440272,-264.81041129,0.0001657,2]
[352791453,1739315440282,-99.01558871,0.0001657,2]
[352791518,1739315443781,-400.98441129,0.0001657,2]
[352791519,1739315443791,-500.0,0.0001657,2]
[352791520,1739315443800,-202.83370833,0.0001657,2]
[352791521,1739315443855,-297.16629167,0.0001657,2]
[352791522,1739315443865,-500.0,0.0001657,2]
[352791523,1739315443874,-500.0,0.0001657,2]
[352791524,1739315443883,-500.0,0.0001657,2]
[352791525,1739315443892,-500.0,0.0001657,2]
[352791526,1739315443901,-500.0,0.0001657,2]
[352791527,1739315443910,-374.01331579,0.0001657,2]
[352791534,1739315445637,-125.98668421,0.0001657,2]
[352791535,1739315445648,-500.0,0.0001657,2]
[352791536,1739315445657,-19.07873581,0.0001657,2]
[352791537,1739315445969,-480.92126419,0.0001657,2]
[352791538,1739315445979,-32.8187358,0.0001657,2]
[352791539,1739315446028,-467.1812642,0.0001657,2]
[352791540,1739315446037,-500.0,0.0001657,2]
[352791541,1739315446047,-500.0,0.0001657,2]
[352791542,1739315446056,-500.0,0.0001657,2]
[352791543,1739315446066,-500.0,0.0001657,2]
[352791544,1739315446075,-500.0,0.0001657,2]
[352791545,1739315446085,-500.0,0.0001657,2]
[352791546,1739315446094,-500.0,0.0001657,2]
[352791547,1739315446104,-500.0,0.0001657,2]
[352791548,1739315446114,-587.90109765,0.0001657,2]
[352791549,1739315446124,-500.0,0.0001657,2]
[352791550,1739315446133,-500.0,0.0001657,2]
[352791551,1739315446143,-500.0,0.0001657,2]
[352791552,1739315446153,-500.0,0.0001657,2]
[352791553,1739315446163,-500.0,0.0001657,2]
[352791554,1739315446172,-500.0,0.0001657,2]
[352791555,1739315446182,-500.0,0.0001657,2]
[352791556,1739315446192,-500.0,0.0001657,2]
[352791557,1739315446202,-500.0,0.0001657,2]
[352791559,1739315446211,-500.0,0.0001657,2]
[352791560,1739315446221,-500.0,0.0001657,2]
[352791561,1739315446231,-500.0,0.0001657,2]
[352791562,1739315446241,-500.0,0.0001657,2]
[352791563,1739315446250,-570.65,0.0001657,2]
[352791564,1739315446260,-500.0,0.0001657,2]
[352791565,1739315446269,-500.0,0.0001657,2]
[352791566,1739315446279,-500.0,0.0001657,2]
[352791567,1739315446288,-501.1776116,0.00016572,2]
[352791568,1739315446298,-500.0,0.00016572,2]
[352791569,1739315446308,-500.0,0.00016572,2]
[352791570,1739315446322,-500.0,0.00016572,2]
[352791571,1739315446332,-500.0,0.00016572,2]
[352791572,1739315446342,-503.17258358,0.00016572,2]
[352791573,1739315446351,-497.97572583,0.00016572,2]
[352791574,1739315446361,-642.66286372,0.00016572,2]
[352791575,1739315446371,-500.0,0.00016572,2]
[352791576,1739315446380,-500.0,0.00016572,2]
[352791577,1739315446391,-500.0,0.00016572,2]
[352791578,1739315446402,-501.45004974,0.00016572,2]